bitfinex-derivatives/quotes_BTCF0:USTF0_20250626
["timestamp","ask_amount","ask_price","bid_price","bid_amount"]
[1750933065623,2.56837051,107450.0,107440.0,0.00493071]
[1750933065828,2.56837051,107450.0,107440.0,0.15280912]
[1750933067331,2.59252475,107450.0,107440.0,0.15280912]
[1750933068230,2.80308982,107450.0,107440.0,0.15280912]
[1750933068424,2.89616069,107450.0,107440.0,0.00493071]
[1750933068626,2.89616069,107450.0,107440.0,0.15280912]
[1750933070034,2.89616069,107450.0,107440.0,0.00493071]
[1750933070730,0.1860856,107430.0,107420.0,0.0306]
[1750933070932,2.27788998,107430.0,107420.0,0.0963]
[1750933071121,2.41509064,107430.0,107420.0,0.24417841]
[1750933071831,2.41509064,107430.0,107420.0,0.25017841]
[1750933072432,2.41509064,107430.0,107420.0,0.24817841]
[1750933073130,3.91509064,107430.0,107420.0,0.24817841]
[1750933074132,3.91509064,107430.0,107420.0,0.25117841]
[1750933074133,2.41509064,107430.0,107420.0,0.25117841]
[1750933074736,2.62565571,107430.0,107420.0,0.25117841]
[1750933074930,2.0269605,107430.0,107420.0,0.15487841]
[1750933075127,2.81564391,107430.0,107420.0,0.15487841]
[1750933075331,2.89007738,107430.0,107420.0,0.15487841]
[1750933075628,2.81564391,107430.0,107420.0,0.15487841]
[1750933076024,2.81564391,107430.0,107420.0,0.15087841]
[1750933076630,2.81564391,107430.0,107420.0,0.003]
[1750933076933,0.1861029,107420.0,107410.0,0.00093097]
[1750933077233,1.64733301,107420.0,107410.0,0.14880938]
[1750933077926,1.64733301,107420.0,107410.0,0.15080938]
[1750933078729,1.64733301,107420.0,107410.0,0.15380938]
[1750933079125,1.64733301,107420.0,107410.0,0.00593097]
[1750933079441,1.74042987,107420.0,107410.0,0.00593097]
[1750933080636,1.74042987,107420.0,107410.0,0.00493097]
[1750933081628,1.74042987,107420.0,107410.0,0.00293097]
[1750933084937,2.23992987,107420.0,107410.0,7e-08]
[1750933085537,2.73992987,107420.0,107410.0,7e-08]
[1750933094141,2.37912987,107420.0,107410.0,7e-08]
[1750933094439,3.10072987,107420.0,107410.0,7e-08]
[1750933094839,0.60728494,107390.0,107380.0,0.06153123]
[1750933095034,2.25360494,107390.0,107380.0,0.06153123]
[1750933095234,2.2548856,107390.0,107380.0,0.20940964]
[1750933096039,2.27871424,107390.0,107380.0,0.24090964]
[1750933096336,2.2548856,107390.0,107380.0,0.24390964]
[1750933096640,2.27869964,107390.0,107380.0,0.24390964]
[1750933096842,2.06813457,107390.0,107380.0,0.24790964]
[1750933097839,1.8575695,107390.0,107380.0,0.24790964]
[1750933098040,2.06813457,107390.0,107380.0,0.24790964]
[1750933098241,2.13863506,107390.0,107380.0,0.24790964]
[1750933098544,2.14802399,107390.0,107380.0,0.24790964]
[1750933099552,2.22342763,107390.0,107380.0,0.24790964]
[1750933099937,2.19961359,107390.0,107380.0,0.24790964]
[1750933100137,2.22344528,107390.0,107380.0,0.24790964]
[1750933100535,0.1862068,107360.0,107350.0,0.07539394]
[1750933100740,2.39457792,107360.0,107350.0,0.00093149]
[1750933100940,1.78734788,107360.0,107350.0,0.1488099]
[1750933101437,1.78862854,107360.0,107350.0,0.1488099]
[1750933101839,1.78862854,107360.0,107350.0,0.2468099]
[1750933102246,1.76479302,107360.0,107350.0,0.2468099]
[1750933102447,1.76479302,107360.0,107350.0,0.2528099]
[1750933103139,1.76479302,107360.0,107350.0,0.2558099]
[1750933103649,1.76479302,107360.0,107350.0,0.2518099]
[1750933105145,1.19015302,107360.0,107350.0,0.2518099]
[1750933105341,1.76483302,107360.0,107350.0,0.8180339]
[1750933105542,1.76483302,107360.0,107350.0,0.4380339]
[1750933106147,1.19015302,107360.0,107350.0,0.4380339]
[1750933106344,0.90908746,107360.0,107350.0,1.03909946]
[1750933107845,0.90908746,107360.0,107350.0,0.7580339]
[1750933112044,0.90908746,107360.0,107350.0,0.4380339]
[1750933112255,0.90908746,107360.0,107350.0,0.7580339]
[1750933113151,0.90908746,107360.0,107350.0,0.4380339]
[1750933113455,0.90908746,107360.0,107350.0,0.7680339]
[1750933113848,0.90908746,107360.0,107350.0,0.5080339]
[1750933116858,0.90908746,107360.0,107350.0,0.5180339]
[1750933117156,0.90908746,107360.0,107350.0,0.7980339]
[1750933117361,0.90908746,107360.0,107350.0,0.5080339]
[1750933118463,0.90908746,107360.0,107350.0,0.8080339]
[1750933119263,0.54828746,107360.0,107350.0,0.8080339]
[1750933120066,0.54828746,107360.0,107350.0,0.5080339]
[1750933120267,0.54828746,107360.0,107350.0,0.8180339]
[1750933120965,0.54828746,107360.0,107350.0,0.8147339]
[1750933121163,0.54828746,107360.0,107350.0,0.5047339]
[1750933121465,0.54828746,107360.0,107350.0,0.7947339]
[1750933121766,0.54828746,107360.0,107350.0,0.4347339]
[1750933122162,0.54828746,107360.0,107350.0,0.7647339]
[1750933122364,0.54828746,107360.0,107350.0,0.7547339]
[1750933122666,0.54828746,107360.0,107350.0,0.289224]
[1750933122867,0.54828746,107360.0,107350.0,0.5147339]
[1750933123068,0.54828746,107360.0,107350.0,0.5799339]
[1750933123269,0.54828746,107360.0,107350.0,0.5699339]
[1750933123467,0.54828746,107360.0,107350.0,0.8199339]
[1750933123869,0.54828746,107360.0,107350.0,0.5699339]
[1750933124270,0.54828746,107360.0,107350.0,0.5799339]
[1750933124769,0.54828746,107360.0,107350.0,0.8099339]
[1750933124973,0.54828746,107360.0,107350.0,0.5799339]
[1750933125773,0.54828746,107360.0,107350.0,0.8799339]
[1750933125964,0.54828746,107360.0,107350.0,0.4999339]
[1750933126164,0.54828746,107360.0,107350.0,0.8699339]
[1750933126566,0.54828746,107360.0,107350.0,0.5599339]
[1750933126772,0.54828746,107360.0,107350.0,0.4999339]
[1750933127368,0.54828746,107360.0,107350.0,0.5599339]
[1750933127569,0.54828746,107360.0,107350.0,0.8699339]
[1750933127765,0.54828746,107360.0,107350.0,0.5599339]
[1750933127972,0.54828746,107360.0,107350.0,0.4999339]
[1750933128281,0.54828746,107360.0,107350.0,0.8199339]
[1750933129264,0.54828746,107360.0,107350.0,0.4999339]
[1750933129465,0.57209691,107360.0,107350.0,0.5599339]
[1750933129672,0.54828746,107360.0,107350.0,0.5599339]
[1750933129873,0.54828746,107360.0,107350.0,0.8299339]
[1750933130373,0.54828746,107360.0,107350.0,0.5599339]
[1750933130571,0.54828746,107360.0,107350.0,0.8399339]
[1750933134376,0.75916066,107360.0,107350.0,0.7108071]
[1750933134564,0.78996066,107360.0,107350.0,0.7376071]
[1750933134873,0.85566066,107360.0,107350.0,0.7376071]
[1750933135474,0.85566066,107360.0,107350.0,0.81206955]
[1750933135973,0.85566066,107360.0,107350.0,0.75206955]
[1750933136178,0.85566066,107360.0,107350.0,0.82206955]
[1750933136369,0.85566066,107360.0,107350.0,0.81206955]
[1750933139370,1.06653386,107360.0,107350.0,0.39088645]
[1750933139570,1.09036771,107360.0,107350.0,0.4019339]
[1750933139877,1.09036771,107360.0,107350.0,0.47639635]
[1750933141373,1.06653386,107360.0,107350.0,0.4019339]
[1750933142080,1.06653386,107360.0,107350.0,0.47639635]
[1750933145383,0.64478746,107360.0,107350.0,0.47639635]
[1750933145578,1.06653386,107360.0,107350.0,0.47639635]
[1750933146382,1.06653386,107360.0,107350.0,0.84639635]
[1750933146582,1.06653386,107360.0,107350.0,0.47639635]
[1750933151486,1.09034589,107360.0,107350.0,0.4019339]
[1750933153088,1.09034589,107360.0,107350.0,0.7119339]
[1750933153287,1.09034589,107360.0,107350.0,0.4019339]
[1750933154590,0.02509269,107360.0,107350.0,1.2581704]
[1750933154788,0.232723,107380.0,107370.0,0.1861893]
[1750933154986,0.232723,107380.0,107370.0,1.4964124]
[1750933155184,0.1861778,107380.0,107370.0,1.65483173]
[1750933155392,0.397051,107380.0,107370.0,1.5622124]
[1750933156491,0.1861778,107380.0,107370.0,1.57159745]
[1750933157192,0.1871778,107380.0,107370.0,1.57159745]
[1750933157389,0.001,107380.0,107370.0,1.57159745]
[1750933157589,0.6875908,107390.0,107380.0,0.1861719]
[1750933157893,0.001,107390.0,107380.0,1.2009282]
[1750933158092,0.001,107390.0,107380.0,1.3360082]
[1750933158291,0.001,107390.0,107380.0,1.55599143]
[1750933158990,0.002,107390.0,107380.0,1.55599143]
[1750933160392,0.001,107390.0,107380.0,1.62617143]
[1750933164398,0.001,107390.0,107380.0,2.19973143]
[1750933165297,0.001,107390.0,107380.0,1.9188018]
[1750933165496,0.1871546,107390.0,107380.0,2.19973143]
[1750933165996,0.1871546,107390.0,107380.0,2.19773143]
[1750933167596,0.001,107390.0,107380.0,2.19773143]
[1750933173200,0.001,107390.0,107380.0,2.05222153]
[1750933173393,0.001,107390.0,107380.0,2.19773143]
[1750933175197,0.001,107390.0,107380.0,2.44773143]
[1750933175398,0.7214991,107420.0,107410.0,0.18612]
[1750933175595,1.0953991,107420.0,107410.0,0.9049499]
[1750933175791,1.37632873,107420.0,107410.0,0.9049499]
[1750933176301,1.0953991,107420.0,107410.0,0.9049499]
[1750933176503,1.0983991,107420.0,107410.0,0.9049499]
[1750933176896,1.37932873,107420.0,107410.0,0.9049499]
[1750933177097,1.37632873,107420.0,107410.0,0.9059499]
[1750933178105,1.37832873,107420.0,107410.0,0.9059499]
[1750933178696,1.37932873,107420.0,107410.0,0.9049499]
[1750933178901,1.38032873,107420.0,107410.0,0.9049499]
[1750933179106,1.38032873,107420.0,107410.0,1.2449499]
[1750933179295,1.38132873,107420.0,107410.0,1.2449499]
[1750933179699,1.38132873,107420.0,107410.0,0.9049499]
[1750933180006,1.38132873,107420.0,107410.0,1.2749499]
[1750933180596,1.38132873,107420.0,107410.0,0.9049499]
[1750933181595,1.38132873,107420.0,107410.0,0.91421944]
[1750933182607,1.38132873,107420.0,107410.0,0.76870954]
[1750933182800,1.38132873,107420.0,107410.0,0.91421944]
[1750933183001,1.02052873,107420.0,107410.0,0.91421944]
[1750933183201,1.1003991,107420.0,107410.0,0.91421944]
[1750933183400,1.07132873,107420.0,107410.0,0.91421944]
[1750933183809,0.7903991,107420.0,107410.0,0.91421944]
[1750933184304,0.7903991,107420.0,107410.0,1.26421944]
[1750933184505,0.7893991,107420.0,107410.0,0.91421944]
[1750933185208,0.7863991,107420.0,107410.0,0.91421944]
[1750933185611,0.7863991,107420.0,107410.0,1.29421944]
[1750933186008,0.7863991,107420.0,107410.0,0.91421944]
[1750933186510,0.7863991,107420.0,107410.0,1.23421944]
[1750933187411,0.7398696,107420.0,107410.0,1.23421944]
[1750933187811,1.02079923,107420.0,107410.0,1.23421944]
[1750933188818,0.7398696,107420.0,107410.0,0.91421944]
[1750933190415,1.02079923,107420.0,107410.0,0.91421944]
[1750933190714,1.02079923,107420.0,107410.0,0.9049499]
[1750933191416,0.7398696,107420.0,107410.0,0.9049499]
[1750933191810,1.02079923,107420.0,107410.0,0.9049499]
[1750933192016,0.7398696,107420.0,107410.0,0.91409122]
[1750933192214,1.02079923,107420.0,107410.0,0.91409122]
[1750933192912,1.02079923,107420.0,107410.0,1.23409122]
[1750933193315,0.97427023,107420.0,107410.0,1.23409122]
[1750933193517,0.6291406,107420.0,107410.0,1.54562085]
[1750933193714,0.6291406,107420.0,107410.0,1.57892085]
[1750933195422,0.6291406,107420.0,107410.0,1.54562085]
[1750933195720,0.6593406,107420.0,107410.0,1.26469122]
[1750933200422,0.6593406,107420.0,107410.0,1.11918132]
[1750933200625,0.6593406,107420.0,107410.0,1.26469122]
[1750933201922,0.6291406,107420.0,107410.0,1.26469122]
[1750933202125,0.5974406,107420.0,107410.0,1.29639122]
[1750933204827,0.5974406,107420.0,107410.0,1.36156122]
[1750933205625,0.5974406,107420.0,107410.0,1.04156122]
[1750933206218,0.80807473,107420.0,107410.0,1.25219535]
[1750933206419,0.80807473,107420.0,107410.0,1.62219535]
[1750933206727,0.80807473,107420.0,107410.0,1.0324199]
[1750933207021,0.80807473,107420.0,107410.0,1.24305403]
[1750933207219,0.84127473,107420.0,107410.0,1.24305403]
[1750933207527,0.84127473,107420.0,107410.0,1.0324199]
[1750933207730,0.84127473,107420.0,107410.0,1.24305403]
[1750933208128,0.84127473,107420.0,107410.0,1.25220743]
[1750933208328,1.05190886,107420.0,107410.0,0.06517]
[1750933208625,1.98796886,107420.0,107410.0,0.06517]
[1750933209025,1.5667006,107420.0,107410.0,0.06517]
[1750933209220,1.98796886,107420.0,107410.0,0.06517]
[1750933209622,1.5687006,107420.0,107410.0,0.25129]
[1750933209920,1.98996886,107420.0,107410.0,0.06517]
[1750933210230,1.8496456,107420.0,107410.0,0.06517]
[1750933210728,1.8526456,107420.0,107410.0,0.06517]
[1750933212430,1.8526456,107420.0,107410.0,0.2512899]
[1750933221231,1.5717006,107420.0,107410.0,0.2512899]
[1750933221431,0.9989406,107420.0,107410.0,0.2512899]
[1750933221630,1.8524856,107420.0,107410.0,0.2512899]
[1750933223235,1.8504856,107420.0,107410.0,0.2512899]
[1750933223434,1.8524856,107420.0,107410.0,0.2512899]
[1750933223825,1.5715406,107420.0,107410.0,0.2512899]
[1750933224029,1.8504856,107420.0,107410.0,0.2512899]
[1750933224237,1.8524856,107420.0,107410.0,0.2512899]
[1750933225532,0.6659025,107420.0,107410.0,0.9674349]
[1750933225732,0.5559025,107420.0,107410.0,1.1129448]
[1750933225935,0.5559025,107420.0,107410.0,1.2474648]
[1750933226545,0.5519025,107420.0,107410.0,1.2474648]
[1750933227040,0.5499025,107420.0,107410.0,1.2474648]
[1750933228343,0.5499025,107420.0,107410.0,1.0065198]
[1750933228552,0.5499025,107420.0,107410.0,0.6265198]
[1750933228752,0.8308475,107420.0,107410.0,1.0065198]
[1750933228955,0.8308475,107420.0,107410.0,0.6265198]
[1750933229153,0.8308475,107420.0,107410.0,0.9565198]
[1750933229553,0.8308475,107420.0,107410.0,0.6265198]
[1750933229754,0.5499025,107420.0,107410.0,0.6265198]
[1750933229951,0.8308475,107420.0,107410.0,0.6265198]
[1750933230955,0.8308475,107420.0,107410.0,0.9365198]
[1750933231755,0.8308475,107420.0,107410.0,0.9765198]
[1750933232156,0.8308475,107420.0,107410.0,0.6265198]
[1750933233357,0.8308475,107420.0,107410.0,0.9565198]
[1750933235445,0.8308475,107420.0,107410.0,0.6265198]
[1750933235845,0.5499025,107420.0,107410.0,0.9565198]
[1750933236253,0.76053657,107420.0,107410.0,1.16715387]
[1750933237463,0.76053657,107420.0,107410.0,0.9565198]
[1750933237654,0.76053657,107420.0,107410.0,1.20715387]
[1750933238761,0.76053657,107420.0,107410.0,0.83715387]
[1750933239057,0.76053657,107420.0,107410.0,0.6265198]
[1750933239361,0.76053657,107420.0,107410.0,0.83715387]
[1750933240362,0.5499025,107420.0,107410.0,0.83715387]
[1750933240859,0.76053657,107420.0,107410.0,0.83715387]
[1750933241165,0.76053657,107420.0,107410.0,1.15715387]
[1750933242262,0.76053657,107420.0,107410.0,0.83715387]
[1750933243866,0.76053657,107420.0,107410.0,1.18715387]
[1750933245865,0.76053657,107420.0,107410.0,0.9765198]
[1750933246165,0.76053657,107420.0,107410.0,1.18715387]
[1750933247964,0.76053657,107420.0,107410.0,0.9765198]
[1750933248161,0.76053657,107420.0,107410.0,1.18715387]
[1750933252570,0.76053657,107420.0,107410.0,0.6265198]
[1750933252760,0.97117064,107420.0,107410.0,0.83715387]
[1750933253061,1.00357064,107420.0,107410.0,0.83715387]
[1750933254761,1.00457064,107420.0,107410.0,0.83715387]
[1750933255466,1.00357064,107420.0,107410.0,0.83715387]
[1750933255864,1.00357064,107420.0,107410.0,1.18715387]
[1750933256066,1.00357064,107420.0,107410.0,0.83715387]
[1750933260075,1.00357064,107420.0,107410.0,0.69164397]
[1750933260270,1.00557064,107420.0,107410.0,0.83715387]
[1750933260666,1.00357064,107420.0,107410.0,0.83715387]
[1750933260968,1.00657064,107420.0,107410.0,0.83715387]
[1750933261169,0.5853025,107420.0,107410.0,0.83715387]
[1750933261370,0.79593657,107420.0,107410.0,0.83715387]
[1750933261666,0.5853025,107420.0,107410.0,0.83715387]
[1750933261971,0.79593657,107420.0,107410.0,0.83715387]
[1750933262170,0.79593657,107420.0,107410.0,1.19715387]
[1750933262471,0.79293657,107420.0,107410.0,1.06263387]
[1750933263068,0.79293657,107420.0,107410.0,0.8519998]
[1750933263372,0.5823025,107420.0,107410.0,1.06263387]
[1750933263571,0.79293657,107420.0,107410.0,1.06263387]
[1750933265575,0.79293657,107420.0,107410.0,0.70263387]
[1750933266773,1.00357064,107420.0,107410.0,0.70263387]
[1750933267173,0.79293657,107420.0,107410.0,0.70263387]
[1750933267777,0.79393657,107420.0,107410.0,0.70263387]
[1750933267977,0.79393657,107420.0,107410.0,1.06263387]
[1750933268576,0.79593657,107420.0,107410.0,0.70263387]
[1750933268778,0.79593657,107420.0,107410.0,1.05263387]
[1750933270879,0.79593657,107420.0,107410.0,0.90712397]
[1750933271177,0.79593657,107420.0,107410.0,1.05263387]
[1750933272378,0.79493657,107420.0,107410.0,1.05263387]
[1750933272572,0.79293657,107420.0,107410.0,1.05263387]
[1750933274379,0.79293657,107420.0,107410.0,0.70263387]
[1750933274582,0.79293657,107420.0,107410.0,1.01263387]
[1750933275279,0.5853025,107420.0,107410.0,1.01263387]
[1750933275481,0.79593657,107420.0,107410.0,1.01263387]
[1750933276978,0.79593657,107420.0,107410.0,1.14671387]
[1750933277188,0.79593657,107420.0,107410.0,0.83671387]
[1750933279086,0.79593657,107420.0,107410.0,1.16671387]
[1750933279983,0.79593657,107420.0,107410.0,0.9560798]
[1750933280285,0.79593657,107420.0,107410.0,0.83671387]
[1750933281887,0.5853025,107420.0,107410.0,0.83671387]
[1750933282089,0.79593657,107420.0,107410.0,0.83671387]
[1750933282684,0.43513657,107420.0,107410.0,0.83671387]
[1750933282889,0.79593657,107420.0,107410.0,0.83671387]
[1750933283497,0.79593657,107420.0,107410.0,1.16671387]
[1750933284294,0.5853025,107420.0,107410.0,1.16671387]
[1750933284498,0.79593657,107420.0,107410.0,1.16671387]
[1750933287895,0.79593657,107420.0,107410.0,0.83671387]
[1750933288795,0.79593657,107420.0,107410.0,0.70263387]
[1750933288996,0.79593657,107420.0,107410.0,1.27423387]
[1750933289400,1.00657064,107420.0,107410.0,1.27423387]
[1750933295110,1.00657064,107420.0,107410.0,1.0635998]
[1750933295614,1.03917064,107420.0,107410.0,1.0635998]
[1750933295909,1.03917064,107420.0,107410.0,1.27423387]
[1750933296513,1.03917064,107420.0,107410.0,1.0635998]
[1750933296812,0.82853657,107420.0,107410.0,1.27423387]
[1750933298915,0.82853657,107420.0,107410.0,1.12872397]
[1750933299114,0.82853657,107420.0,107410.0,1.27423387]
[1750933301014,0.82853657,107420.0,107410.0,1.0635998]
[1750933301216,0.82853657,107420.0,107410.0,1.21153387]
[1750933301710,0.82853657,107420.0,107410.0,0.8228899]
[1750933301902,1.21247064,107420.0,107410.0,0.63653]
[1750933302102,1.45247064,107420.0,107410.0,0.06517]
[1750933304419,0.1861199,107410.0,107400.0,0.1338]
[1750933304613,1.43553397,107410.0,107400.0,0.2793099]
[1750933304917,1.43553397,107410.0,107400.0,0.4654471]
[1750933305618,1.4448782,107410.0,107400.0,0.4654471]
[1750933306307,1.4448782,107410.0,107400.0,0.3199372]
[1750933306617,1.5248782,107410.0,107400.0,0.3199372]
[1750933307620,1.7948782,107410.0,107400.0,0.1338]
[1750933307820,0.1861372,107400.0,107390.0,0.3257759]
[1750933308016,0.98534221,107400.0,107390.0,0.3416496]
[1750933308316,1.08024221,107400.0,107390.0,0.3416496]
[1750933308814,1.08024221,107400.0,107390.0,0.1961397]
[1750933309211,1.10024221,107400.0,107390.0,0.01]
[1750933309521,1.40124221,107400.0,107390.0,0.1961546]
[1750933309913,1.18124221,107400.0,107390.0,0.1961546]
[1750933311417,1.18124221,107400.0,107390.0,0.1971546]
[1750933319221,1.39124221,107400.0,107390.0,0.1971546]
[1750933321916,1.39124221,107400.0,107390.0,0.2288546]
[1750933323627,1.39124221,107400.0,107390.0,0.3743645]
[1750933326127,1.39124221,107400.0,107390.0,0.3426645]
[1750933326626,1.39124221,107400.0,107390.0,0.1971546]
[1750933326929,1.39124221,107400.0,107390.0,0.3426645]
[1750933329935,1.32934221,107400.0,107390.0,0.1565099]
[1750933330430,1.39144221,107400.0,107390.0,0.1565099]
[1750933330728,1.39144221,107400.0,107390.0,0.3426645]
[1750933331428,1.39144221,107400.0,107390.0,0.1565099]
[1750933331627,1.73563628,107400.0,107390.0,1e-07]
[1750933331827,2.07875048,107400.0,107390.0,1e-07]
[1750933333930,0.1861544,107390.0,107380.0,0.06518]
[1750933334128,1.94208254,107390.0,107380.0,0.06518]
[1750933334729,2.03519674,107390.0,107380.0,0.06518]
[1750933335230,2.03919674,107390.0,107380.0,0.06518]
[1750933336139,2.04119674,107390.0,107380.0,0.06518]
[1750933337832,2.11429914,107390.0,107380.0,0.06518]
[1750933339234,2.11558052,107390.0,107380.0,0.06518]
[1750933342442,1.81179225,107390.0,107380.0,0.06518]
[1750933342634,1.77939225,107390.0,107380.0,0.2106899]
[1750933342831,1.77939225,107390.0,107380.0,0.2718899]
[1750933343539,1.77939225,107390.0,107380.0,0.3032899]
[1750933343742,1.77939225,107390.0,107380.0,0.2381099]
[1750933344640,1.99002632,107390.0,107380.0,0.2381099]
[1750933346741,1.99002632,107390.0,107380.0,0.3032899]
[1750933348842,1.99002632,107390.0,107380.0,0.15778]
[1750933349043,1.99002632,107390.0,107380.0,0.3032899]
[1750933353149,1.99002632,107390.0,107380.0,0.15778]
[1750933353346,1.99002632,107390.0,107380.0,0.3032899]
[1750933354349,2.02262632,107390.0,107380.0,0.3032899]
[1750933357746,1.66182632,107390.0,107380.0,0.3032899]
[1750933358049,2.38342632,107390.0,107380.0,0.3032899]
[1750933362055,1.66182632,107390.0,107380.0,0.3032899]
[1750933362250,2.38342632,107390.0,107380.0,0.3032899]
[1750933364559,2.35082632,107390.0,107380.0,0.3032899]
[1750933364959,1.55885818,107390.0,107380.0,0.3439517]
[1750933365148,1.19877225,107390.0,107380.0,0.70009567]
[1750933365358,2.02949225,107390.0,107380.0,0.4894616]
[1750933367558,1.95638985,107390.0,107380.0,0.4894616]
[1750933370061,1.38566985,107390.0,107380.0,0.4894616]
[1750933371266,1.38566985,107390.0,107380.0,0.3032899]
[1750933371466,1.38566985,107390.0,107380.0,0.4894616]
[1750933377471,1.38566985,107390.0,107380.0,0.3032899]
[1750933377671,1.38566985,107390.0,107380.0,0.4894616]
[1750933378575,1.59630392,107390.0,107380.0,0.4894616]
[1750933380774,1.38566985,107390.0,107380.0,0.4894616]
[1750933384074,1.38566985,107390.0,107380.0,0.3032899]
[1750933384270,1.62680392,107390.0,107380.0,0.3032899]
[1750933384765,1.65870392,107390.0,107380.0,0.3032899]
[1750933384965,1.65870392,107390.0,107380.0,0.06518]
[1750933384966,1.94364371,107390.0,107380.0,0.06518]
[1750933385167,1.97634371,107390.0,107380.0,0.06518]
[1750933385376,2.06946658,107390.0,107380.0,0.06518]
[1750933385568,2.06946658,107390.0,107380.0,0.020707]
[1750933385770,0.1862064,107360.0,107350.0,0.22883149]
[1750933385970,0.96827454,107360.0,107350.0,0.41563149]
[1750933386170,1.00175592,107360.0,107350.0,0.56114139]
[1750933386370,0.86172575,107360.0,107350.0,0.56114139]
[1750933386578,0.89442575,107360.0,107350.0,0.56114139]
[1750933386881,0.89442575,107360.0,107350.0,0.56314139]
[1750933387270,0.89442575,107360.0,107350.0,0.53524139]
[1750933387470,0.89442575,107360.0,107350.0,0.50484139]
[1750933390279,0.89442575,107360.0,107350.0,0.69106459]
[1750933390772,0.89442575,107360.0,107350.0,0.50484139]
[1750933391474,1.20172575,107360.0,107350.0,0.47244139]
[1750933391678,0.96292575,107360.0,107350.0,0.47244139]
[1750933392279,1.21292575,107360.0,107350.0,0.47244139]
[1750933392680,0.97292575,107360.0,107350.0,0.32693149]
[1750933392977,1.23292575,107360.0,107350.0,0.47244139]
[1750933393579,0.96292575,107360.0,107350.0,0.47244139]
[1750933394883,0.97209935,107360.0,107350.0,0.47244139]
[1750933395184,0.98209935,107360.0,107350.0,0.47244139]
[1750933395586,1.28209935,107360.0,107350.0,0.47044139]
[1750933395779,1.28209935,107360.0,107350.0,0.32593149]
[1750933395984,1.28209935,107360.0,107350.0,0.47144139]
[1750933396181,0.90209935,107360.0,107350.0,0.47144139]
[1750933396382,0.97209935,107360.0,107350.0,0.47144139]
[1750933396684,1.25209935,107360.0,107350.0,0.46944139]
[1750933398584,1.25209935,107360.0,107350.0,0.32393149]
[1750933399386,1.25209935,107360.0,107350.0,0.00393149]
[1750933399585,1.25209935,107360.0,107350.0,0.07393149]
[1750933400287,0.98209935,107360.0,107350.0,0.07393149]
[1750933400478,1.23209935,107360.0,107350.0,0.07393149]
[1750933400685,0.97209935,107360.0,107350.0,0.11119149]
[1750933400883,1.26209935,107360.0,107350.0,0.11119149]
[1750933401988,0.98209935,107360.0,107350.0,0.11119149]
[1750933402992,0.98209935,107360.0,107350.0,0.04119149]
[1750933407197,0.95089935,107360.0,107350.0,0.18204139]
[1750933407393,1.20089935,107360.0,107350.0,0.18204139]
[1750933407896,0.91966138,107360.0,107350.0,0.18204139]
[1750933408096,1.15952575,107360.0,107350.0,0.36826469]
[1750933408290,1.40004575,107360.0,107350.0,0.43356469]
[1750933408998,1.11880778,107360.0,107350.0,0.43356469]
[1750933409298,1.40004575,107360.0,107350.0,0.43356469]
[1750933409896,0.82952575,107360.0,107350.0,0.43356469]
[1750933410096,1.40000575,107360.0,107350.0,0.43356469]
[1750933412492,1.40000575,107360.0,107350.0,0.24734139]
[1750933414005,1.40000575,107360.0,107350.0,0.43356469]
[1750933416405,0.54828778,107360.0,107350.0,0.43356469]
[1750933417907,0.82952575,107360.0,107350.0,0.43356469]
[1750933418502,0.82952575,107360.0,107350.0,0.24734139]
[1750933418910,0.82952575,107360.0,107350.0,0.43356469]
[1750933421411,0.82952575,107360.0,107350.0,0.28805479]
[1750933421602,0.82952575,107360.0,107350.0,0.43356469]
[1750933422606,0.82952575,107360.0,107350.0,0.28805479]
[1750933422814,0.82952575,107360.0,107350.0,0.43356469]
[1750933426013,0.54828778,107360.0,107350.0,0.43356469]
[1750933426215,0.97007298,107360.0,107350.0,0.43356469]
[1750933428519,0.97007298,107360.0,107350.0,0.64445729]
[1750933433713,0.97007298,107360.0,107350.0,0.49894739]
[1750933435624,0.97007298,107360.0,107350.0,0.46654739]
[1750933435823,1.06597298,107360.0,107350.0,0.46654739]
[1750933436724,1.06597298,107360.0,107350.0,0.25465479]
[1750933437026,1.06697298,107360.0,107350.0,0.46554739]
[1750933438123,0.64518778,107360.0,107350.0,0.46554739]
[1750933438323,1.06697298,107360.0,107350.0,0.46554739]
[1750933438525,1.06697298,107360.0,107350.0,0.25265479]
[1750933438825,1.06697298,107360.0,107350.0,0.60905729]
[1750933441830,1.06697298,107360.0,107350.0,0.39816469]
[1750933442031,1.06697298,107360.0,107350.0,0.60905729]
[1750933443733,1.06697298,107360.0,107350.0,0.39816469]
[1750933444531,1.06697298,107360.0,107350.0,0.60905729]
[1750933444732,1.06697298,107360.0,107350.0,0.57615729]
[1750933445036,1.39697298,107360.0,107350.0,0.14644139]
[1750933445332,1.06697298,107360.0,107350.0,0.14644139]
[1750933445632,1.06697298,107360.0,107350.0,0.00093149]
[1750933445830,1.06697298,107360.0,107350.0,0.14644139]
[1750933447437,1.44697298,107360.0,107350.0,0.14644139]
[1750933447836,1.14697298,107360.0,107350.0,0.14644139]
[1750933449339,0.72518778,107360.0,107350.0,0.14644139]
[1750933449530,1.14697298,107360.0,107350.0,0.14644139]
[1750933452230,0.72518778,107360.0,107350.0,0.33266469]
[1750933452431,1.14697298,107360.0,107350.0,0.33266469]
[1750933454236,1.14697298,107360.0,107350.0,0.14644139]
[1750933454743,1.38697298,107360.0,107350.0,0.14644139]
[1750933454941,1.13697298,107360.0,107350.0,0.14644139]
[1750933458344,1.13697298,107360.0,107350.0,0.00093149]
[1750933458542,1.13697298,107360.0,107350.0,0.14644139]
[1750933458843,1.49777298,107360.0,107350.0,0.14644139]
[1750933459340,1.42777298,107360.0,107350.0,0.14644139]
[1750933459543,1.50777298,107360.0,107350.0,0.14644139]
[1750933459742,1.42977298,107360.0,107350.0,0.14644139]
[1750933459947,1.75977298,107360.0,107350.0,0.14644139]
[1750933460151,1.01198778,107360.0,107350.0,0.33366469]
[1750933460344,2.30219298,107360.0,107350.0,0.43016469]
[1750933464447,2.30219298,107360.0,107350.0,0.28465479]
[1750933464647,2.30219298,107360.0,107350.0,0.43016469]
[1750933466458,2.30219298,107360.0,107350.0,0.64105729]
[1750933466459,1.12698038,107360.0,107350.0,0.64105729]
[1750933466649,1.90815298,107360.0,107350.0,0.64105729]
[1750933467251,1.90815298,107360.0,107350.0,0.43016469]
[1750933468141,1.90815298,107360.0,107350.0,0.64105729]
[1750933470360,1.93885298,107360.0,107350.0,0.64105729]
[1750933470760,1.93885298,107360.0,107350.0,0.43016469]
[1750933480666,1.36857298,107360.0,107350.0,0.28465479]
[1750933480867,1.51694778,107360.0,107350.0,0.49554739]
[1750933481171,1.93873298,107360.0,107350.0,0.49554739]
[1750933481472,1.57793298,107360.0,107350.0,0.49554739]
[1750933483579,1.15614778,107360.0,107350.0,0.49554739]
[1750933483769,1.57793298,107360.0,107350.0,0.49554739]
[1750933484663,1.15614778,107360.0,107350.0,0.49554739]
[1750933484868,1.57793298,107360.0,107350.0,0.49554739]
[1750933485676,1.57793298,107360.0,107350.0,0.64105729]
[1750933486379,1.57793298,107360.0,107350.0,0.43016469]
[1750933486778,1.60963298,107360.0,107350.0,0.43016469]
[1750933491581,1.60963298,107360.0,107350.0,0.28465479]